Cogmind - Beta 15 @@@ ROGUE MODE // 2025.07.17 @ 19:34:04 Player: daxter767676 Result: Destroyed by Y-54 Guardian with Flak Gun Performance ------------- Evolutions (4) 2000 Regions Visited (5) 1000 Robots Destroyed (37) 185 Value Destroyed (986) 986 Prototype IDs (8) 160 Alien Tech Used (0) 0 Bonus (300) 300 TOTAL SCORE: 4631 Bonus ------- Registered with UFD 300 Cogmind --------- Core Integrity 0/850 Matter 280/300 Energy 100/100 System Corruption 7% Temperature Cool (19) Movement Flying (40) Location -6/Factory Parts ------- > --- POWER (2) -------- (None) > --- PROPULSION (3) --- Xenon Bombardment Thruster > --- UTILITY (7) ------ Improved Signal Interpreter > --- WEAPON (3) ------- Shock Maul > --- INVENTORY (5) ---- Scrap Suit Improved Sensor Array Experimental Terrain Scanner Force Booster Peak State ------------ > --- POWER ------------ Heavy Deuterium Engine Light Fission Core > --- PROPULSION ------- Compact Wheel Armored Wheel Subdweller Monowheel > --- UTILITY ---------- Scrap Suit Humpback Experimental Terrain Scanner Scrap Shield > --- WEAPON ----------- Heavy Flak Cannon Makeshift Hammer Shock Maul > --- INVENTORY -------- Subdweller Power Source Light Fission Core Light Treads Scrap Suit Scrap Suit Small Storage Unit Huge Storage Unit Advanced Weight Redist. System Advanced Weight Redist. System Advanced Weight Redist. System Improved Sensor Array Improved Signal Interpreter Advanced Melee Analysis Suite Advanced Melee Analysis Suite Force Booster Force Booster Drone Bay Drone Bay Drone Bay Drone Bay EM Pulse Gun Subdweller Beam Cannon Subdweller Machine Gun Makeshift Shrapnel Gun Battle Cannon Heavy Flak Cannon Makeshift Hammer Scrap Shield Fragment Scrap Shield Fragment Scrap Shield Fragment Scrap Shield Fragment Scrap Shield Fragment Scrap Shield Fragment [Rating: 64] Favorites ----------- Power Improved Ion Engine Engine Improved Ion Engine Power Core Nuclear Core Propulsion Compact Wheel Leg Aluminum Leg Wheel Compact Wheel Flight Unit Xenon Bombardment Thruster Utility Humpback Device Heat Sink Storage Humpback Processor Improved Signal Interpreter Protection Scrap Shield Weapon Makeshift Hammer Energy Gun Medium Laser Ballistic Gun Assault Rifle Ballistic Cannon Heavy Flak Cannon Impact Weapon Makeshift Hammer Build | -11 -10 -10 -9 -9 -6 ------- Run | Yrd Mat Sub Rec Scr Fac Slots Evolved 8 | . . . . . 8 Power 1 | . . . . . 1 Propulsion 1 | . . . . . 1 Utility 5 | . . . . . 5 Weapon 1 | . . . . . 1 Parts Attached 39 | 1 1 13 4 1 19 Power 9 | . 1 2 . 1 5 Engine 6 | . 1 2 . . 3 Core 3 | . . . . 1 2 Reactor . | . . . . . . Propulsion 13 | . . 6 4 . 3 Treads . | . . . . . . Leg 2 | . . 1 1 . . Wheel 10 | . . 5 3 . 2 Hover . | . . . . . . Flight 1 | . . . . . 1 Utility 11 | 1 . 3 . . 7 Device 5 | 1 . 1 . . 3 Storage 3 | . . 2 . . 1 Processor 1 | . . . . . 1 Hackware . | . . . . . . Protection 2 | . . . . . 2 Artifact . | . . . . . . Weapon 6 | . . 2 . . 4 Energy Gun 2 | . . 1 . . 1 Energy Cannon . | . . . . . . Ballistic Gun . | . . . . . . Ballistic Cannon 2 | . . . . . 2 Launcher . | . . . . . . Special Weapon . | . . . . . . Impact Weapon 2 | . . 1 . . 1 Slashing Weapon . | . . . . . . Piercing Weapon . | . . . . . . Special Melee Weapon . | . . . . . . Unidentified Prototypes 2 | . . . . . 2 Parts Lost 29 | . . 8 . . 21 Power 6 | . . 2 . . 4 Propulsion 9 | . . 4 . . 5 Utility 8 | . . 1 . . 7 Weapon 4 | . . 1 . . 3 Highest Loss Streak 17 | . . 5 . . 17 To Critical Strikes 2 | . . . . . 2 Average Backups 23 | 6 7 19 26 26 23 Power 3 | 1 1 4 3 4 2 Propulsion 4 | 4 5 4 6 5 1 Utility 9 | . . 6 11 10 13 Weapon 5 | 1 1 3 6 6 6 Tool/Special . | . . . . . . Unused Backups 35 | . 7 3 . 4 21 Power 5 | . 2 1 . . 2 Propulsion 6 | . 2 1 . 1 2 Utility 17 | . 1 . . 3 13 Weapon 7 | . 2 1 . . 4 Tool/Special . | . . . . . . Average Slot Usage (%) 79 | . 100 90 70 72 78 Engine 5 | . 14 13 . . 5 Core 1 | . . . . 1 5 Leg 3 | . 28 6 7 . . Wheel 22 | . . 21 19 28 18 Device 5 | . 14 5 . . 19 Storage 12 | . 14 14 14 14 5 Energy Gun 9 | . 14 6 14 14 2 Ballistic Gun 3 | . 14 8 . . . Impact Weapon 12 | . . 12 14 14 12 Peak Build Rating 64 | 9 10 18 17 20 64 Average Rating 21 | 7 9 15 16 16 51 On Entrance 12 | 6 9 10 17 15 20 Naked Turns . | . . . . . . Heaviest Build 255 | 13 17 212 210 212 255 Greatest Support 48 | 20 20 32 32 32 48 Greatest Overweight (x) 12 | . . 10 12 6 8 Average Overweight (x) 5 | . . 4 9 6 3 Largest Inventory Capacity 35 | 8 8 35 35 35 35 Average Capacity 31 | 8 8 27 35 35 33 Most Carried 35 | 7 8 35 35 35 35 Average Carried 30 | 6 7 25 34 34 32 Final Capacity 35 | 8 8 35 35 35 5 Final Carried 35 | 7 8 34 35 35 5 Class Distribution -------------------- 75% | Hauler-Mutant 24% | Mutant Dominant Class ---------------- Mutant | -10/Materials Mutant | -10/Subcaves Hauler-Mutant | -9/Recycling Hauler-Mutant | -9/Scraptown Hauler-Mutant | -6/Factory Resources | -11 -10 -10 -9 -9 -6 ----------- Run | Yrd Mat Sub Rec Scr Fac Matter Collected 654 | 228 . 165 55 . 206 Remotely . | . . . . . . Salvage Created 1875 | 109 . 196 539 . 1031 Parts 60 | 6 . 24 10 . 20 Haulers Intercepted . | . . . . . . Recyclers Shooed 1 | . . . 1 . . Parts Field Recycled . | . . . . . . Retrieved Matter . | . . . . . . Parts Self-Destructed 17 | . . 17 . . . Prevented . | . . . . . . Kills | -11 -10 -10 -9 -9 -6 ------- Run | Yrd Mat Sub Rec Scr Fac Combat Hostiles Destroyed 23 | . . 8 1 . 14 Melee 7 | . . 1 . . 6 Guns 7 | . . 7 . . . Classes Destroyed 11 | 2 . 3 1 . 5 Worker 2 | . . . . . 2 Builder 1 | . . . . . 1 Tunneler 1 | 1 . . . . . Recycler 10 | 1 . . 6 . 3 Swarmer 8 | . . 4 . . 4 Grunt 8 | . . 1 . . 7 Sentry 1 | . . . 1 . . Specialist 1 | . . . . . 1 Hunter 1 | . . . . . 1 Programmer 1 | . . . . . 1 Subdweller 3 | . . 3 . . . Best Kill Streak 4 | 2 . 3 3 . 4 Combat Bots Only 3 | . . 3 1 . 3 Max Kills in Single Turn 1 | 1 . 1 1 . 1 Gunslinging . | . . . . . . Exploded . | . . . . . . Melee 1 | . . 1 . . 1 Uniques/NPCs Destroyed . | . . . . . . Combat | -11 -10 -10 -9 -9 -6 -------- Run | Yrd Mat Sub Rec Scr Fac Hostile Shots Fired 443 | . . 113 6 . 324 Missed 135 | . . 34 2 . 99 Hits 308 | . . 79 4 . 225 Projectile 308 | . . 79 4 . 225 AOE 1 | . . 1 . . . Critical Strikes 7 | . . 1 . . 6 Damage Taken 4105 | . . 1030 61 . 3014 Core 1096 | . . 243 . . 853 Absorbed by Shields . | . . . . . . Redirected to Shielding 50 | . . . . . 50 Regen/Repaired (Parts) 56 | . . . . . 56 Core Remaining (%) 51 | 100 . . . 2 . Volleys Fired 50 | 6 . 41 . . 3 Largest 2 | 2 . 2 . . 1 Hottest 70 | 70 . 70 . . 50 Shots Fired 59 | 12 . 42 . . 5 Gun 56 | 12 . 42 . . 2 Cannon 3 | . . . . . 3 Launcher . | . . . . . . Special . | . . . . . . Kinetic 30 | 6 . 21 . . 3 Thermal 29 | 6 . 21 . . 2 Explosive . | . . . . . . Electromagnetic . | . . . . . . Robot Hit Streak 7 | 4 . 7 . . 4 Robot Miss Streak 3 | 3 . 3 . . 2 Penetration Max . | . . . . . . Secondary Targets . | . . . . . . Shots Hit Robots 91 | 7 . 35 9 . 40 Core Hits 20 | 3 . 11 1 . 5 Critical Kills 2 | . . . 1 . 1 Critical Parts Destroyed 16 | . . . . . 16 Critical Strikes 19 | . . 1 1 . 17 Burn 1 | . . 1 . . . Smash 18 | . . . 1 . 17 Melee Attacks 121 | . . 28 11 . 82 Impact 121 | . . 28 11 . 82 Slashing . | . . . . . . Piercing . | . . . . . . Sneak Attacks 14 | . . . 8 . 6 Combat Hostiles . | . . . . . . Follow-up Attacks 8 | . . . . . 8 Damage Inflicted 3580 | 84 . 553 708 . 2235 Guns 495 | 84 . 411 . . . Cannons 74 | . . . . . 74 Explosions . | . . . . . . Melee 3011 | . . 142 708 . 2161 Ramming . | . . . . . . Kinetic 328 | 45 . 209 . . 74 Thermal 241 | 39 . 202 . . . Explosive . | . . . . . . Electromagnetic . | . . . . . . Impact 3011 | . . 142 708 . 2161 Slashing . | . . . . . . Piercing . | . . . . . . Highest Corruption 7 | . . . . . 7 Average Corruption 2 | . . . . . 2 Corruption Purged . | . . . . . . Corruption Blocked . | . . . . . . Effects 17 | . . . . . 17 Message Errors 1 | . . . . . 1 Matter Fused 3 | . . . . . 3 Heat Flow Errors 4 | . . . . . 4 Energy Discharges 3 | . . . . . 3 Data Loss (minor) 3 | . . . . . 3 Data Loss (major) 1 | . . . . . 1 Misfires 2 | . . . . . 2 Overload Shots . | . . . . . . Overflow Damage 1550 | . . 3 384 . 1163 Projectiles 7 | . . . . . 7 Explosions . | . . . . . . Melee 1543 | . . 3 384 . 1156 Knockbacks 18 | . . . 3 . 15 Impact 14 | . . . 3 . 11 Kinetic 4 | . . . . . 4 Secondary . | . . . . . . Self-Inflicted Damage . | . . . . . . Shots . | . . . . . . Rammed . | . . . . . . Targets Rammed . | . . . . . . Kicked . | . . . . . . Crushed . | . . . . . . Highest Temperature 159 | 45 . . . . 159 Average Temperature 45 | 24 . . . . 67 Received Heat Transfer 540 | . . 357 18 . 165 Siege Activations . | . . . . . . Martial Activations . | . . . . . . Shielding Activations . | . . . . . . Robots Disrupted . | . . . . . . Combat Hostiles . | . . . . . . Robots Corrupted 15 | . . . 4 . 11 Combat Hostiles 9 | . . . 1 . 8 Parts Fried 17 | . . . 3 . 14 Impact Corruptions 49 | . . 2 12 . 35 Robots Melted . | . . . . . . Combat Hostiles . | . . . . . . Parts Melted . | . . . . . . Heat Transferred 777 | 111 . 666 . . . Parts Sabotaged . | . . . . . . Parts Stolen . | . . . . . . Parts Stripped . | . . . . . . Power Chain Reactions . | . . . . . . Alert | -11 -10 -10 -9 -9 -6 ------- Run | Yrd Mat Sub Rec Scr Fac Maximum Alert Level . | . . . . . . Low Security (%) 100 | 100 100 . 100 . 100 Level 1 . | . . . . . . Level 2 . | . . . . . . Level 3 . | . . . . . . Level 4 . | . . . . . . Level 5 . | . . . . . . High Security . | . . . . . . Max Security . | . . . . . . Peak Influence 166 | 10 40 . 55 . 166 Initial 35 | . . . 35 . . Average 37 | 1 16 . 5 . 69 Influence Increases 953 | 10 103 130 136 . 574 Destroy 0b10 Robot/C 400 | . . 100 20 . 280 Destroy 0b10 Robot/NC 70 | 10 . . 30 . 30 Destroy Leader 50 | . . . . . 50 Successful Hack 70 | . 13 . 24 . 33 Select Force Hacks 90 | . 30 . 60 . . Disable Machine 15 | . . . . . 15 Destroy Structure 18 | . . . 2 . 16 Lose Combat Pursuer 240 | . 60 30 . . 150 Influence Decreases 941 | 10 63 96 210 . 562 Entered New Map 59 | . . 20 39 . . Time Decay 724 | 10 63 66 171 . 414 Lost Part 158 | . . 10 . . 148 Squads Dispatched 11 | . 2 . . . 9 Investigation 5 | . 2 . . . 3 Extermination 3 | . . . . . 3 Reinforcement 3 | . . . . . 3 Assault . | . . . . . . Garrison . | . . . . . . Intercept . | . . . . . . Searches Triggered . | . . . . . . Construction Impeded . | . . . . . . Haulers Reinforced . | . . . . . . Active Scanning Responses . | . . . . . . Cargo Convoy Interrupts 1 | . . . . . 1 Stealth | -11 -10 -10 -9 -9 -6 --------- Run | Yrd Mat Sub Rec Scr Fac Distress Signals 2 | . 1 . . . 1 Communications Jammed . | . . . . . . Distress Signals . | . . . . . . Times Spotted 64 | . 2 18 1 . 43 Peak Tracking Total 13 | . 3 4 1 . 13 Tactical Retreats 11 | . 2 2 . . 7 Traps | -11 -10 -10 -9 -9 -6 ------- Run | Yrd Mat Sub Rec Scr Fac Traps Triggered 3 | . 1 . . . 2 Indirectly . | . . . . . . Trap Hack Attempts . | . . . . . . Triggered . | . . . . . . Disarmed . | . . . . . . Reprogrammed . | . . . . . . Reused . | . . . . . . Traps Extracted . | . . . . . . Installed . | . . . . . . Triggered . | . . . . . . Machines | -11 -10 -10 -9 -9 -6 ---------- Run | Yrd Mat Sub Rec Scr Fac Machines Disabled 1 | . . . . . 1 Max in Single Turn 1 | . . . . . 1 Machines Repaired . | . . . . . . Machines Dismantled . | . . . . . . Machines Sabotaged . | . . . . . . Overloaded Fab Kills . | . . . . . . Hacking | -11 -10 -10 -9 -9 -6 --------- Run | Yrd Mat Sub Rec Scr Fac Machines Accessed 20 | . 3 . 9 2 6 Terminals 11 | . 2 . 6 . 3 Fabricators . | . . . . . . Repair Stations 1 | . . . . . 1 Recycling Units 6 | . 1 . 3 . 2 Scanalyzers . | . . . . . . Garrison Access . | . . . . . . Total Hacks 50 | . 8 . 23 7 12 Successful 30 | . 6 . 11 7 6 Failed 20 | . 2 . 12 . 6 Catastrophic 2 | . . . . . 2 Database Lockouts . | . . . . . . Manual 37 | . 7 . 21 . 9 Terminals 32 | . 7 . 19 . 6 Fabricators . | . . . . . . Repair Stations 3 | . . . . . 3 Recycling Units 8 | . 1 . 4 . 3 Scanalyzers . | . . . . . . Garrison Access . | . . . . . . Terminal Hacks 10 | . 1 . 2 7 . Record 7 | . . . . 7 . Branch Access Points 1 | . . . 1 . . Emergency Access Points 1 | . 1 . . . . Alert Level 1 | . . . 1 . . Fabricator Hacks . | . . . . . . Repair Station Hacks 2 | . . . . . 2 Scan Component 1 | . . . . . 1 Repair 1 | . . . . . 1 Recycling Unit Hacks . | . . . . . . Scanalyzer . | . . . . . . Garrison Access Hacks . | . . . . . . Unauthorized Hacks 18 | . 5 . 9 . 4 Terminals 13 | . 4 . 7 . 2 Track 2 | . . . 1 . 1 Botnet 3 | . 2 . 1 . . Skim 8 | . 2 . 5 . 1 Fabricators . | . . . . . . Repair Stations . | . . . . . . Recycling Units 5 | . 1 . 2 . 2 Tunnel 3 | . 1 . 2 . . Fedlink 2 | . . . . . 2 Scanalyzers . | . . . . . . Garrison Access . | . . . . . . Data Cores Recovered . | . . . . . . Used . | . . . . . . Hacking Detections 14 | . 2 . 7 . 5 Full Trace Events . | . . . . . . Feedback Events . | . . . . . . Feedback Blocked . | . . . . . . Robot Schematics Acquired . | . . . . . . Robots Built . | . . . . . . Authchips . | . . . . . . Time . | . . . . . . Total Robot Build Rating . | . . . . . . Part Schematics Acquired . | . . . . . . Parts Built . | . . . . . . Authchips . | . . . . . . Time . | . . . . . . Total Part Build Rating . | . . . . . . Parts Repaired 1 | . . . . . 1 Time 108 | . . . . . 108 Parts Recycled . | . . . . . . Recycled Matter . | . . . . . . Retrieved Matter . | . . . . . . Retrieved Components . | . . . . . . Parts Scanalyzed . | . . . . . . Part Schematics Acquired . | . . . . . . Parts Damaged . | . . . . . . Bothacking | -11 -10 -10 -9 -9 -6 ------------ Run | Yrd Mat Sub Rec Scr Fac Used RIF Installer . | . . . . . . Robots Hacked . | . . . . . . Non-combat . | . . . . . . Combat . | . . . . . . Robot Hacks Applied . | . . . . . . Relay Couplers Released . | . . . . . . Fabnet Peak Effective % . | . . . . . . Robots Rewired . | . . . . . . Allies Hacked . | . . . . . . Hacks Repelled . | . . . . . . Allies | -11 -10 -10 -9 -9 -6 -------- Run | Yrd Mat Sub Rec Scr Fac Total Allies . | . . . . . . Largest Group . | . . . . . . Highest-Rated Group . | . . . . . . Highest-Rated Ally . | . . . . . . Total Orders . | . . . . . . Ally Attacks . | . . . . . . Total Damage . | . . . . . . Kills . | . . . . . . Allies Corrupted . | . . . . . . Allies Melted . | . . . . . . Intel | -11 -10 -10 -9 -9 -6 ------- Run | Yrd Mat Sub Rec Scr Fac Active Infowar (turns) 2075 | 12 169 607 . . 1287 Optics 844 | . . . . . 844 Terrain 1967 | 12 169 607 . . 1179 Robot Analysis Total . | . . . . . . Derelict Logs Recovered 5 | . . . . 5 . Drone Launches . | . . . . . . Drone Recoveries . | . . . . . . Exploration | -11 -10 -10 -9 -9 -6 ------------- Run | Yrd Mat Sub Rec Scr Fac Turns Passed 8544 | 34 169 2792 1242 2907 1400 Spaces Moved 4334 | 12 129 1642 417 1522 612 Core 47 | . . . . . 47 Treads . | . . . . . . Legs 217 | 12 129 76 . . . Wheels 4047 | . . 1566 417 1522 542 Hover . | . . . . . . Flight 23 | . . . . . 23 Fastest Speed 40 | 120 120 110 190 190 40 Average Speed 167 | 120 120 150 205 190 144 Slowest Speed 280 | 120 120 210 280 190 215 Overloaded Moves . | . . . . . . Propulsion Burnouts . | . . . . . . Robots Hopped . | . . . . . . Potential Cave-ins . | . . . . . . Cave-ins Triggered . | . . . . . . Exploration Rate (%) 51 | 2 32 83 86 86 19 Regions Visited 5 Branch Regions 3 Pre-discovered Areas 5 | . 1 . 4 . . Known Exits Taken 1 | . . . 1 . . Unknown Exits Taken 4 | 1 1 1 . 1 . Scrap Searched 11 | . . 8 . 3 . Spaces Dug 17 | . . 1 2 . 14 Terrain Destroyed 17 | . . 1 2 . 14 Melee 17 | . . 1 2 . 14 Projectile . | . . . . . . AOE . | . . . . . . Terrain Rammed . | . . . . . . Walls Destroyed . | . . . . . . Machines Disabled . | . . . . . . Actions | -11 -10 -10 -9 -9 -6 --------- Run | Yrd Mat Sub Rec Scr Fac Total 5394 | 19 145 1894 791 1542 1003 Wait 756 | . 12 107 356 7 274 Move 4329 | 11 128 1641 416 1521 612 Hop . | . . . . . . Pick Up 81 | 1 2 56 . 6 16 Fast Attach 12 | 1 . 2 3 1 5 Attach 21 | . . 6 . . 15 Detach 4 | . . . 2 . 2 Swap 10 | . 1 5 1 . 3 Drop 29 | . 2 8 2 7 10 Fire 50 | 6 . 41 . . 3 Melee 102 | . . 28 11 . 63 Ram . | . . . . . . Kick . | . . . . . . Crush . | . . . . . . Escape Stasis . | . . . . . . Rewire . | . . . . . . Trap . | . . . . . . Miscellaneous . | . . . . . . Route ------- -11/Scrapyard -10/Materials (discovered 2 exits: [*Mat] / [*Sub]) -10/Subcaves (discovered 3 exits: [*Mat x2] / *Rec) -9/Recycling (discovered 2 exits: [*Fac] / *Scr) -9/Scraptown (discovered 2 exits: *Fac x2) -6/Factory (discovered 2 exits: [*Low x2]) History --------- Turn | Location | Event 10 | -11/Scrapyard | Discovered new exit (range 2) 35 | -11/Scrapyard | Entered Materials 151 | -10/Materials | Discovered new exit (range 9) 201 | -10/Materials | Discovered new exit (range 3) 204 | -10/Materials | Entered Subcaves 255 | -10/Subcaves | Discovered new exit (range 9) 308 | -10/Subcaves | Build established: Mutant 380 | -10/Subcaves | Shifting Twisted Machinery released Mak. Hammer 380 | -10/Subcaves | Shifting Twisted Machinery released Sub. Power Source 648 | -10/Subcaves | A swath of the cavern ceiling suddenly collapsed 710 | -10/Subcaves | Discovered new exit (range 6) 1447 | -10/Subcaves | A swath of the cavern ceiling suddenly collapsed 1537 | -10/Subcaves | Shifting Twisted Machinery released Sub. Laser 1652 | -10/Subcaves | Curiously followed by a Cobbler waking with a query about "LVR3C" 1924 | -10/Subcaves | Disturbed a concealed Subdweller 1924 | -10/Subcaves | Disturbed a concealed Subdweller 1924 | -10/Subcaves | Disturbed a concealed Subdweller 1934 | -10/Subcaves | Core integrity fell below 50% 1964 | -10/Subcaves | Lost 5 parts (1p3n1w) 2344 | -10/Subcaves | Build established: Hauler-Mutant 2480 | -10/Subcaves | Shifting Twisted Machinery released Piercing Trap 2501 | -10/Subcaves | Shifting Twisted Machinery released Mak. System Restoration Module 2977 | -10/Subcaves | Discovered new exit (range 10) 2980 | -10/Subcaves | Core integrity fell below 20% 2996 | -10/Subcaves | Entered Recycling 3441 | -9/Recycling | Discovered new exit (range 9) 3848 | -9/Recycling | Scanned before Scraplab entrance 3875 | -9/Recycling | Entered Scraplab 3890 | -9/Recycling | Learned Materials security intel 3947 | -9/Recycling | Identified exit to Scraptown 3993 | -9/Recycling | Learned location of Zion (-6) 4031 | -9/Recycling | Learned Storage stockpile data 4060 | -9/Recycling | Learned location of 2 exits from Materials 4084 | -9/Recycling | Learned Materials stockpile data 4128 | -9/Recycling | Learned location of 2 exits from Materials 4167 | -9/Recycling | Learned Storage stockpile data 4215 | -9/Recycling | Learned location of 1 exit from Storage 4238 | -9/Recycling | Entered Scraptown 4582 | -9/Scraptown | Visited TADAMA 4604 | -9/Scraptown | Visited Symbiants 5013 | -9/Scraptown | Visited Cyclists 5188 | -9/Scraptown | Discovered new exit (range 11) 5281 | -9/Scraptown | Scanned Subdweller tech in exchange for log data 5285 | -9/Scraptown | Learned Research emergency access door positions 5286 | -9/Scraptown | Learned Factory emergency access door positions 5288 | -9/Scraptown | Learned Factory terminal intel 5290 | -9/Scraptown | Learned Factory stockpile data 5292 | -9/Scraptown | Learned location of 1 exit from Research 5421 | -9/Scraptown | Visited Spacefarers 5541 | -9/Scraptown | Visited UFD Registry 5541 | -9/Scraptown | Registered with UFD as "Roughbox" 5575 | -9/Scraptown | Visited Abandonware Association 5596 | -9/Scraptown | Learned abandonware demo "SHUTEYE.EXE" 5638 | -9/Scraptown | Visited Junk Repository 5678 | -9/Scraptown | Visited Supply Room 5737 | -9/Scraptown | Delivered Scrap Shield to a Scientist 5904 | -9/Scraptown | Visited Infowarlord's Domain 5955 | -9/Scraptown | Found Exp. Terrain Scanner 5992 | -9/Scraptown | Visited Supply Room 6017 | -9/Scraptown | Visited Junk Repository 6074 | -9/Scraptown | Visited Curators Association 6108 | -9/Scraptown | Visited Research Penetration Think Tank 6154 | -9/Scraptown | Visited Science Guys 6201 | -9/Scraptown | Visited Chapter 10 6435 | -9/Scraptown | Found Scrap Suit 6438 | -9/Scraptown | Found Scrap Suit 6457 | -9/Scraptown | Found Scrap Suit 7138 | -9/Scraptown | Discovered new exit (range 3) 7145 | -9/Scraptown | Entered Factory 7145 | -6/Factory | Evolved 8 slots: Power x1, Propulsion x1, Utility x5, Weapon x1 7148 | -6/Factory | Loaded intel: 26 terminal locations 7268 | -6/Factory | Discovered new exit (range 8) 7540 | -6/Factory | Loaded intel: 8 recycling unit locations 8039 | -6/Factory | Repaired Exp. Terrain Scanner 8429 | -6/Factory | Cargo convoy interrupted 8496 | -6/Factory | Core integrity fell below 50% 8509 | -6/Factory | Core integrity fell below 20% 8528 | -6/Factory | Lost 17 parts (2p4n6u3w) 8545 | -6/Factory | Discovered new exit (range 11) 8545 | -6/Factory | Destroyed by Y-54 Guardian with Flak Gun Last Messages --------------- 08506_ Wheel fried. 08506_ Assembly Bed disabled. 08508_ M-28 Smith repairs P-60 Hacker Shock Rifle. 08509_ O-24 Administrator: "IFF HANDSHAKE FAILED. SECURING TERMINAL." 08510_ System corrupted: Component data lost. 08510_ O-24 Administrator uses terminal to summon reinforcements. 08510_ ALERT: Hostiles spotted, dispatching reinforcements to Terminal F016. 08510_ O-24 Administrator locks terminal. 08510_ O-24 Administrator cleans trojans from system. 08525_ K-01 Serf cleans the Nuclear Reactor. 08527_ Acquired Xenon Bombardment Thruster. 08532_ ALERT: Suspicious intruders detected, dispatching Cutter reinforcements to area. 08545_ EXIT=FOUND 08545_ Slug penetrates Wall. Map ----- +----------------------------------------------------+ | ?????????????????????????????????????????????????? | | ?????????????"""?????????????[???????????????????? | | ?????????????"T??????????????????????????????????? | | ?????????????"""?????????????????????????????????? | | ?????????????????????????????????????????????????? | | ?????????????????????????????????????????????????? | | ?????????????????????????????????????????????????? | | ?????????????????????????????????????????????????? | | ?????????????????????????????????????????????????? | | ?????????????????????????????????????????????????? | | ??????????????????????? ??????????????????????? | | ?????????????????????# ??????????????????????? | | ????????????????????# ??????????????????????? | | ?#??????????????????# ??????????????????????? | | ????????????????????? ??????????????????????? | | ????????????????????? Y ??????????????????????? | | ???????????? ???????? ??????????????????????? | | ?????????#???????????? ??????????????????????? | | ?#??????????????"???? ??????????????????????? | | ??#????#??????"???????# #?#????????????????????? | | ?????#????????????????# ###################????? | | ?????##????#??????????# u# #????? | | ??? ? ??#????????"?#??# # #????? | | ?? ? ??????????????#?## # #????? | | ???????????? ????????## # = #????? | | ?????R" ?#???? ??? ??# p@# #????? | | ?/???????#????"??????#T + """ """ #?#??? | | ?? ????????"???? ??## ; """S""" = #????? | | ???#??????????? ???#??# ;########/#########???#? | | ?#????#???????#+###### k #???## #????? | | ????#????#### ! H#??### #????? | | ????###?### Y """ #????? | | ????? ??## ###### """ #????? | | ?????# #??# ##### #??#?# """ #????? | | #????# #### #############?## #???#? | | ##???# # #??# #????? | | #??#?## # ! """ """ #### #??#?? | | ??????# / """ """ + #????? | | ??#?### # """ """ ##### #????? | | ?##?### # / #?#?###### #????? | | ####### # ! #??#??#?## #???"? | | # #?##????## #?"??" | | ####### ########+####????#???# #????" | | ?????## % ##+#####"#### ##??##??#???# #????? | | ????#?###+#### ## ##?########## #????? | | #?????#!% ! ]# """"## ##### ! # #???? | | ???#??#!*% # """"## / # #???? | | ??##??#=[%! # """"## #####"""" # # ???? | | ?#????#!!% [ # """"## #???#"""" !# #????? | | ???#??# # """"## #??##"""" # ### | +----------------------------------------------------+ Best States ------------- Heat Dissipation 47 Energy Generation 31 Energy Capacity 410 Matter Stores 300 Matter Capacity 300 Sight Range 21 Terrain Scan Range 30 Terrain Scan Density 10 Armor Coverage 800 Utility Shielding 33 Evasion (%) 62 Item Schematics ----------------- None Robot Schematics ------------------ None Fabricated ------------ Nothing Repaired ---------- Exp. Terrain Scanner | 68% | -6/Factory Alien Tech Used ----------------- None Achievements -------------- None Challenges ------------ None Game ------ Seed CompositeBehemothMatter Manual? 0 Play Time 01:04:00 Cumulative 146.1 hours Start 2025.07.15 @ 18:53:10 End 2025.07.17 @ 19:34:04 Sessions 3 Manual Loads 0 Difficulty Rogue Special Mode None Game No. 145 Rogue 143 Adventurer 2 Explorer 0 Win Type - Total 0 Types 0/0/0/0/0/0/0/0/0/0 Lore% 63 Gallery% 56 Achievement% 44 Wizard Run 0 Options --------- Layout 2 ASCII 0 Keyboard 1 Movement Numpad Keybinds 0 Fullscreen 1 Font 48/Smallcaps Map View 50x66 Zoom Use 0% Tactical HUD 1 Map Filters NONE Filters NONE Steam 1 RUN: 1b9b01cb-0d77-4ec7-acfd-e722aee6d957